[Event "55th Biel Festival MTO 2022"]
[Site "Biel"]
[Date "2022.07.19"]
[Round "6.8"]
[White "Sethuraman S.P."]
[Black "Gagare Shardul"]
[Result "1-0"]
[ECO "C95"]
[WhiteElo "2623"]
[BlackElo "2514"]
[Annotator "TA"]
[PlyCount "133"]
[EventDate "2022.07.13"]
[EventType "swiss"]
[EventCountry "SUI"]
[SourceTitle "playchess.com"]
[Source "ChessBase"]
[SourceQuality "1"]
[TimeControl "40/5400+30:1800+30"]

{[%evp 29,133,0,2,12,5,3,4,0,13,0,8,21,12,0,18,23,74,41,155,156,166,164,164,150,170,176,151,85,170,99,103,91,102,93,151,140,147,156,176,131,459,448,421,401,435,397,444,435,435,427,383,309,287,263,248,275,262,242,356,357,353,303,375,375,364,321,392,388,376,310,321,321,321,321,321,321,321,321,321,321,349,349,349,349,501,474,675,691,485,607,481,465,635,0,458,458,443,435,418,383,400,349,29986,29987,29987,29988]} 1. e4 {[%emt 0:00:04]} e5 {[%emt 0:03:54]} 2. Nf3 {[%emt 0:00:09]} Nc6 {[%emt 0:00:06]} 3. Bb5 {[%emt 0:00:04][%cal Bf1b5,Bb5a4,Ba4b3][%mdl 32]} a6 {[%emt 0:00:05]} 4. Ba4 {[%emt 0:00:04]} Nf6 {[%emt 0:00:10]} 5. O-O {[%emt 0:00:08]} Be7 {[%emt 0:00:03]} 6. Re1 {[%emt 0:00:06]} b5 {[%emt 0:00:03]} 7. Bb3 {[%emt 0:00:05]} d6 {[%emt 0:00:03]} 8. c3 {[%emt 0:00:05]} O-O {[%emt 0:00:07]} 9. h3 {[%emt 0:00:03]} Nb8 {[%emt 0:00:08]} 10. d4 {[%emt 0:00:06]} Nbd7 {[%emt 0:00:03]} 11. Nbd2 {[%emt 0:00:20]} Bb7 {[%emt 0:00:15]} 12. Bc2 {[%emt 0:00:08]} Re8 {[%emt 0:00:10]} 13. Nf1 {[%emt 0:00:11]} Bf8 {[%emt 0:00:05]} 14. Ng3 {[%emt 0:00:04]} g6 {[%emt 0:00:04]} 15. Bd2 {[%emt 0:00:07]} Bg7 {[%emt 0:06:31]} 16. Qc1 {[%emt 0:00:06] C95: Closed Ruy Lopez: Breyer Variation with 10 d4.} d5 {[%emt 0:06:32]} 17. Bg5 {[%emt 0:00:06] With the idea dxe5.} Qc8 {[%emt 0:01:02]} 18. dxe5 {[%emt 0:00:07] The position is equal.} Nxe4 {[%emt 0:00:57]} 19. Bf4 {[%emt 0:00:05][%cal Rg3e4,Bg5f4,Bf4g3,Bg3h4][%mdl 32]} Nxg3 {[%emt 0:27:37]} 20. Bxg3 {[%emt 0:01:36]} c5 {[%emt 0:04:55]} 21. Qd2 {[%emt 0:00:06] [#]} (21. Qf4 {keeps more tension.} Nf8 22. Ng5 Qd7 23. Rad1) 21... a5 $146 {[%emt 0:09:52]} ({Predecessor:} 21... Re7 22. Bb3 Qc6 23. Rad1 Nb6 24. Nh4 Rae8 25. f4 f6 26. Nf3 fxe5 27. Nxe5 Qd6 {½-½ (52) Giuliani,C (2282)-Bujdak,P (2203) LSS email 2020}) 22. h4 {[%emt 0:03:10][%cal Oe5e6,Bh3h4,Bh4h5][%mdl 32]} Re7 {[%emt 0:13:32]} (22... Ra6 $11 {remains equal.}) 23. h5 {[%emt 0:07:17][%cal Oe5e6]} (23. e6 $5 Rxe6 24. Rxe6 fxe6 25. h5 $11) 23... Qe8 {[%emt 0:05:29]} (23... Qc6 $14) 24. Bh4 $16 {[%emt 0:12:25]} Re6 {[%emt 0:01:39][%cal Rd7e5]} 25. Ng5 {[%emt 0:00:06]} (25. hxg6 $6 hxg6 26. Ng5 Rea6 $14) 25... Rb6 {[%emt 0:08:24]} 26. Qe3 {[%emt 0:09:45]} Raa6 {[%emt 0:01:52]} (26... Bxe5 $2 27. f4 d4 28. Qh3) 27. hxg6 {[%emt 0:07:27]} hxg6 {[%emt 0:00:40]} 28. f4 {[%emt 0:00:22]} (28. Rad1 $142) 28... b4 {[%emt 0:03:26]} (28... f6 $16) 29. Qh3 {[%emt 0:04:23]} (29. Ba4 $1 $18) 29... Nf8 {[%emt 0:01:12]} 30. Bf2 {[%emt 0:00:19]} bxc3 {[%emt 0:03:43]} 31. bxc3 {[%emt 0:01:35]} (31. Qxc3 Ne6 $11) 31... Rb2 {[%emt 0:00:12] [#]} (31... Qe7 $142) 32. Re2 $1 {[%emt 0:03:30][%cal Oc2g6] Hoping for Bxg6! 0x0.00144c07ce4adp-1022s more active pieces.} Bc8 {[%emt 0:02:40] [#]} 33. Qf3 $36 {[%emt 0:00:48][%cal Oc2g6][%mdl 2048] aiming for Bxg6! White is really pushing.} Qb5 {[%emt 0:00:13]} 34. a4 {[%emt 0:03:05]} Qc6 {[%emt 0:00:37][%mdl 8192] [#]} (34... Qb8 $16 35. Bxc5 (35. Qxd5 Ne6 $16) 35... Ne6) 35. Bxg6 $1 $18 {[%emt 0:00:40][%mdl 512]} Rb7 {[%emt 0:01:04]} 36. Bc2 {[%emt 0:01:11]} Re7 {[%emt 0:00:31]} 37. Rb1 {[%emt 0:02:29]} d4 {[%emt 0:00:29]} 38. cxd4 {[%emt 0:02:10]} cxd4 {[%emt 0:00:09]} 39. Bxd4 {[%emt 0:03:16]} Qxf3 {[%emt 0:00:53]} 40. Nxf3 {[%emt 0:00:05]} Rc6 {[%emt 0:00:15]} 41. Be4 {[%emt 0:30:59]} Rc4 {[%emt 0:04:24]} 42. f5 {[%emt 0:00:00] Threatens to win with f6.} Rd7 {[%emt 0:03:30]} 43. Bf2 {[%emt 0:00:00]} Rdc7 {[%emt 0:05:23]} (43... Rxa4 {was called for.} 44. e6 fxe6 45. fxe6 Nxe6) 44. Bb6 {[%emt 0:00:00][%csl LRa5,LRc7]} Rc1+ {[%emt 0:04:53]} 45. Re1 {[%emt 0:00:00]} Rxb1 {[%emt 0:02:03]} 46. Bxb1 {[%emt 0:00:00]} ({Resist} 46. Bxc7 Rb4 47. Bxa5 Rxa4 $18) ({Not} 46. Rxb1 Rc4 $18) 46... Rc4 {[%emt 0:00:15]} 47. Bxa5 {[%emt 0:00:00]} Rxa4 {[%emt 0:00:08]} 48. Bd2 {[%emt 0:00:00]} Nd7 {[%emt 0:06:14]} 49. Bc2 {[%emt 0:00:00]} Ra2 {[%emt 0:01:33]} 50. Bb3 {[%emt 0:00:00]} Rxd2 {[%emt 0:06:21]} 51. Nxd2 {[%emt 0:00:00]} Nxe5 {[%emt 0:00:06]} 52. Nc4 {[%emt 0:00:00]} Nxc4 {[%emt 0:00:09]} 53. Re8+ {[%emt 0:00:00]} ({But not} 53. Bxc4 Bxf5 54. Re7 Bg6 $18) 53... Kh7 {[%emt 0:00:39]} 54. Rxc8 {[%emt 0:01:51][%mdl 4096] Endgame KRB-KBN} Nd6 {[%emt 0:00:06]} 55. Rc7 {[%emt 0:02:10]} Bd4+ {[%emt 0:00:40]} 56. Kf1 {[%emt 0:02:27] And now g4 would win.} Kg7 {[%emt 0:00:17]} (56... Kh6 $142 57. Rc6 Be5 58. Bxf7 Kg5) 57. g4 {[%emt 0:01:21]} Kf6 {[%emt 0:01:26]} (57... Ne4 $142 58. Rxf7+ Kh6) 58. Ke2 {[%emt 0:00:13]} Be5 {[%emt 0:00:45]} 59. Kf3 {[%emt 0:00:23]} Bh2 {[%emt 0:00:52]} 60. Ra7 {[%emt 0:00:58]} Be5 {[%emt 0:00:27]} 61. Rc7 $2 {[%emt 0:03:13]} (61. Rd7 $18 Bh2 62. Bd5) 61... Kg7 $2 {[%emt 0:00:32][%mdl 8192]} (61... Bh2 $1 $11 {and Black has nothing to worry.} 62. Ra7 Be5) 62. Kg2 {[%emt 0:01:41]} Kf6 {[%emt 0:00:32]} 63. Rd7 {[%emt 0:03:20]} Kg5 {[%emt 0:00:13]} 64. Kf3 {[%emt 0:00:04]} Kf6 {[%emt 0:00:28]} 65. Bd5 {[%emt 0:00:05]} Kg7 $2 {[%emt 0:00:47]} (65... Bh2 $18 66. Ba2 Be5) 66. g5 {[%emt 0:01:11]} Nxf5 {[%emt 0:00:16]} 67. Ke4 {[%emt 0:00:05] Weighted Error Value: White=0.13 (very precise) /Black=0.37} 1-0

[Event "55th Biel Festival MTO 2022"]
[Site "Biel"]
[Date "2022.07.19"]
[Round "6.9"]
[White "Puranik Abhimanyu"]
[Black "Bharath Subramaniyam H"]
[Result "1/2-1/2"]
[ECO "B60"]
[WhiteElo "2612"]
[BlackElo "2479"]
[Annotator "TA"]
[PlyCount "127"]
[EventDate "2022.07.13"]
[EventType "swiss"]
[EventCountry "SUI"]
[SourceTitle "playchess.com"]
[Source "ChessBase"]
[SourceQuality "1"]
[TimeControl "40/5400+30:1800+30"]

{[%evp 13,127,52,66,56,50,39,34,33,31,37,33,30,39,34,37,26,43,26,11,0,29,20,44,33,62,62,45,45,66,73,75,68,63,55,46,8,11,0,0,4,16,20,21,0,66,22,14,0,0,0,41,0,132,132,118,0,0,0,67,0,18,0,70,47,47,47,100,0,0,0,0,0,0,0,92,92,92,92,92,92,92,92,92,92,92,92,92,92,92,92,92,92,92,92,92,92,92,92,92,0,0,0,0,0,0,0,0,0,0,0,0,0,0,0,0,0]} 1. e4 {[%emt 0:01:51]} c5 {[%emt 0:00:09]} 2. Nf3 {[%emt 0:00:07][%cal Bg1f3,Bf3d4,Bd4e2,Be2f4][%mdl 32]} d6 {[%emt 0:00:07]} 3. d4 {[%emt 0:00:04]} cxd4 {[%emt 0:00:06]} 4. Nxd4 {[%emt 0:00:03]} Nf6 {[%emt 0:00:07]} 5. Nc3 {[%emt 0:00:03]} Nc6 {[%emt 0:00:22]} 6. Bg5 {[%emt 0:00:56]} g6 {[%emt 0:00:14]} 7. Bxf6 {[%emt 0:04:00]} exf6 {[%emt 0:00:10]} 8. Bb5 {[%emt 0:01:00] B60: Sicilian: Richter-Rauzer: Unusual Black 6th moves and 6...Bd7 without 7 Qd2.} Bd7 {[%emt 0:00:07]} 9. Nde2 {[%emt 0:04:29] Pair of Knights!} Be6 {[%emt 0:00:07]} 10. O-O {[%emt 0:03:26] White is slightly better.} Bg7 {[%emt 0:00:13]} 11. Nf4 {[%emt 0:04:57]} O-O {[%emt 0:00:15] [#]} 12. Re1 $146 {[%emt 0:05:36]} ({Predecessor:} 12. Qd2 f5 13. Rad1 Nd4 14. exf5 Bxf5 15. Bd3 Qg5 16. Kh1 Bxd3 17. Nxd3 Qxd2 18. Rxd2 {0-1 (40) Carlsen,M (2847)-Dubov,D (2710) chess24.com INT 2021}) 12... Re8 {[%emt 0:09:22]} 13. Ncd5 {[%emt 0:09:12]} Qa5 {[%emt 0:20:03]} 14. a4 {[%emt 0:05:17]} a6 {[%emt 0:11:18]} 15. b4 {[%emt 0:03:16]} Qd8 {[%emt 0:00:19]} 16. Bc4 {[%emt 0:01:48]} Bxd5 {[%emt 0:16:38]} (16... Bh6 $5 {[%cal Rh6f4]} 17. Bf1 Rc8 $11) 17. Nxd5 {[%emt 0:16:53]} f5 {[%emt 0:01:07]} 18. Ra3 {[%emt 0:00:10]} Rxe4 {[%emt 0:12:14]} 19. Rxe4 {[%emt 0:00:17]} fxe4 {[%emt 0:00:06]} 20. Re3 {[%emt 0:01:29]} Ne7 {[%emt 0:12:03]} 21. Rxe4 {[%emt 0:01:09]} Nxd5 {[%emt 0:03:06]} 22. Qxd5 {[%emt 0:00:14]} Qc7 {[%emt 0:02:13]} 23. a5 {[%emt 0:01:17]} Be5 {[%emt 0:01:33]} 24. f4 {[%emt 0:04:09]} Bf6 {[%emt 0:01:16]} 25. g4 {[%emt 0:01:53]} Kf8 {[%emt 0:04:24]} 26. g5 {[%emt 0:06:23]} Bb2 {[%emt 0:01:08]} 27. f5 {[%emt 0:02:03] [#] Hoping for fxg6.} Re8 {[%emt 0:01:13]} 28. f6 {[%emt 0:05:29]} Be5 {[%emt 0:03:15]} (28... Re5 $11 29. Rxe5 Bxe5) 29. Rh4 {[%emt 0:04:53]} h5 {[%emt 0:01:11]} 30. Bd3 {[%emt 0:05:33]} Qd7 {[%emt 0:00:30]} 31. Kg2 {[%emt 0:01:25]} Rc8 {[%emt 0:00:24]} 32. Re4 {[%emt 0:01:37]} Rc7 {[%emt 0:00:33]} (32... Rc3 $1 $11) 33. h3 {[%emt 0:00:32]} Kg8 {[%emt 0:00:27] [#]} 34. Rc4 {[%emt 0:00:46]} (34. c4 $1 $16) 34... Rxc4 $11 {[%emt 0:00:20]} 35. Bxc4 {[%emt 0:00:06][%mdl 4096] Endgame KQB-KQB} Qc7 {[%emt 0:00:32]} ({Better is} 35... Kf8 $1 $11) 36. Qe4 {[%emt 0:00:20]} (36. Bb3 $14) 36... Kh8 {[%emt 0:00:07]} 37. Qd5 {[%emt 0:01:56]} ({White should play} 37. h4 $11) 37... Kg8 $14 {[%emt 0:00:10]} 38. Qd3 {[%emt 0:00:15] Threatening mate with Qxg6+.} Kf8 {[%emt 0:00:48]} 39. Qe4 $1 {[%emt 0:00:17]} Qc8 {[%emt 0:01:03]} (39... d5 $14 40. Bxd5 (40. Qxd5 Bd6 $16) 40... Qc3) 40. Bd3 {[%emt 0:03:29]} (40. h4 $16) 40... Qc7 {[%emt 0:00:38]} 41. h4 {[%emt 0:12:43]} Qc3 {[%emt 0:19:59]} 42. Kf3 {[%emt 0:08:15]} Qc8 {[%emt 0:06:52]} 43. Bf1 {[%emt 0:02:32] Active counter play!} Qg4+ {[%emt 0:01:28]} (43... Kg8 $11 {remains equal.}) 44. Qxg4 $16 {[%emt 0:00:06]} hxg4+ {[%emt 0:00:04]} 45. Kxg4 {[%emt 0:00:04] KB-KB} Bc3 {[%emt 0:00:07]} 46. Bg2 {[%emt 0:00:02]} Bxb4 {[%emt 0:00:11]} 47. Bxb7 {[%emt 0:00:30]} Bxa5 {[%emt 0:00:01]} 48. Bxa6 {[%emt 0:02:39]} d5 {[%emt 0:01:49]} 49. Bb7 {[%emt 0:00:17]} d4 {[%emt 0:00:01]} 50. Bd5 {[%emt 0:00:09]} Be1 {[%emt 0:00:15]} 51. h5 {[%emt 0:00:09]} gxh5+ {[%emt 0:00:05]} 52. Kxh5 {[%emt 0:00:02]} Bd2 {[%emt 0:00:16]} 53. Kg4 {[%emt 0:00:09]} Be3 {[%emt 0:00:25]} 54. Kf5 {[%emt 0:00:04]} Bd2 {[%emt 0:00:53]} 55. Bb3 {[%emt 0:00:18]} Ke8 {[%emt 0:01:40]} 56. Bxf7+ {[%emt 0:00:10]} Kxf7 {[%emt 0:00:02] KB-K3P. The position is equal.} 57. g6+ {[%emt 0:00:05]} Kf8 {[%emt 0:00:58]} 58. Ke5 {[%emt 0:00:06]} Bc3 {[%emt 0:00:45] ...d3+ is the strong threat.} 59. Ke6 {[%emt 0:00:07]} Bb4 {[%emt 0:00:33]} 60. f7 {[%emt 0:00:22]} Kg7 {[%emt 0:00:10]} 61. Kd5 {[%emt 0:00:05]} Kxg6 {[%emt 0:00:13]} 62. Kxd4 {[%emt 0:00:04]} Kxf7 {[%emt 0:00:06]} 63. c3 {[%emt 0:00:02]} Bxc3+ {[%emt 0:00:07]} 64. Kxc3 {[%emt 0:00:02] Weighted Error Value: White=0.14 (very precise) /Black=0.17 (very precise)} 1/2-1/2

[Event "55th Biel Festival MTO 2022"]
[Site "Biel"]
[Date "2022.07.19"]
[Round "6.10"]
[White "Muradli Mahammad"]
[Black "Banusz Tamas"]
[Result "1-0"]
[ECO "D30"]
[WhiteElo "2523"]
[BlackElo "2611"]
[Annotator "TA"]
[PlyCount "81"]
[EventDate "2022.07.13"]
[EventType "swiss"]
[EventCountry "SUI"]
[SourceTitle "playchess.com"]
[Source "ChessBase"]
[SourceQuality "1"]
[TimeControl "40/5400+30:1800+30"]

{[%evp 9,81,24,25,22,34,12,18,11,37,27,89,81,140,139,171,151,177,121,138,96,102,90,111,95,105,106,104,64,85,60,98,94,69,71,135,129,136,114,114,114,103,101,106,126,164,144,222,164,190,169,195,167,164,168,232,225,224,224,214,241,246,229,420,399,368,348,418,416,457,456,570,568,492,485]} 1. d4 {[%emt 0:01:57]} d5 {[%emt 0:00:11]} 2. c4 {[%emt 0:00:07]} e6 {[%emt 0:00:07]} 3. Nf3 {[%emt 0:00:10]} a6 {[%emt 0:00:07]} 4. Bg5 {[%emt 0:01:46]} Be7 {[%emt 0:00:09]} 5. Bxe7 {[%emt 0:00:16]} Qxe7 {[%emt 0:00:05]} 6. Nbd2 {[%emt 0:00:11] D30: Queen's Gambit Declined: Systems without Nc3.} Nf6 {[%emt 0:00:17]} 7. Qc2 {[%emt 0:02:54]} O-O {[%emt 0:01:05]} 8. g3 {[%emt 0:00:14] [#] The position is equal.} b6 $146 {[%emt 0:03:47]} ({Predecessor:} 8... Nc6 9. Bg2 e5 10. dxe5 Nxe5 11. cxd5 Nxd5 12. O-O Rd8 13. Nxe5 Qxe5 14. Nc4 Qe7 {½-½ (23) Bernadskiy,V (2599)-Warmerdam,M (2535) Villorba 2021}) 9. Rc1 {[%emt 0:10:48]} Bb7 {[%emt 0:12:49]} (9... c6 $11) 10. cxd5 $16 {[%emt 0:05:01]} exd5 {[%emt 0:01:21]} (10... Rd8 $142) 11. Qxc7 {[%emt 0:10:46]} Rc8 {[%emt 0:01:14]} 12. Qxc8+ {[%emt 0:00:05]} (12. Qxe7 $2 Rxc1#) 12... Bxc8 {[%emt 0:00:04]} 13. Rxc8+ {[%emt 0:00:10]} Ne8 {[%emt 0:00:05]} 14. Bg2 {[%emt 0:09:55]} Kf8 {[%emt 0:08:40]} 15. O-O $1 {[%emt 0:19:52] Threatens to win with Ne5.} Qb7 {[%emt 0:00:51]} 16. Rfc1 {[%emt 0:00:06]} Nd7 {[%emt 0:00:22]} 17. R8c2 {[%emt 0:00:07] White is much more active.} Rd8 {[%emt 0:06:23]} 18. Ne1 {[%emt 0:00:54]} Ndf6 {[%emt 0:04:47]} 19. Nd3 {[%emt 0:01:41]} Ne4 {[%emt 0:05:11]} 20. Nxe4 {[%emt 0:03:10]} dxe4 {[%emt 0:00:11]} 21. e3 {[%emt 0:00:10]} a5 {[%emt 0:07:28]} ({Better is} 21... Nd6) 22. Ne5 {[%emt 0:02:18]} Qd5 {[%emt 0:01:24]} 23. Rc6 {[%emt 0:06:12]} f6 {[%emt 0:12:38]} 24. Nd3 {[%emt 0:00:13][%cal Be5d3,Bd3b2,Bb2a4,Ba4c3,Bc3b5,Bb5c7][%mdl 32]} Rd6 {[%emt 0:00:10]} 25. Rc8 {[%emt 0:00:53] Nf4 is the strong threat.} g5 {[%emt 0:05:42] Inhibits Nf4.} 26. b3 {[%emt 0:04:43]} Ke7 {[%emt 0:02:10] [#]} 27. Nb2 $1 {[%emt 0:01:26] Black must now prevent Rb8.} h5 {[%emt 0:07:38]} (27... Rd8 $16 {is a better defense.}) 28. Na4 {[%emt 0:00:42]} Qb7 {[%emt 0:01:30]} 29. Bh3 {[%emt 0:03:28]} Rd8 {[%emt 0:03:29]} 30. R8c6 {[%emt 0:02:42]} Rd6 {[%emt 0:00:06]} 31. R6c2 {[%emt 0:00:21]} g4 {[%emt 0:05:08]} (31... Kf7 $142 32. Bf1 Qd7) 32. Bg2 $18 {[%emt 0:01:22]} f5 {[%emt 0:00:28] [#]} 33. Nc3 $1 {[%emt 0:00:41]} Rd7 {[%emt 0:03:05]} 34. Nb5 {[%emt 0:00:54] Prevents Rc7.} Qd5 {[%emt 0:02:32]} 35. Bf1 {[%emt 0:00:24]} Nd6 $2 {[%emt 0:00:27]} (35... h4 {was necessary.} 36. Rc6 (36. gxh4 f4 $16) 36... hxg3) 36. Nc7 {[%emt 0:00:39]} Qg8 {[%emt 0:01:53]} 37. Rc6 {[%emt 0:01:07]} h4 {[%emt 0:01:02]} 38. Rxb6 {[%emt 0:00:32]} hxg3 {[%emt 0:00:52]} 39. hxg3 {[%emt 0:00:08] White is clearly winning.} a4 {[%emt 0:01:14]} 40. Rc5 {[%emt 0:03:11]} axb3 {[%emt 0:00:21]} 41. axb3 {[%emt 0:30:09] Weighted Error Value: White=0.06 (flawless) /Black=0.24 (precise)} 1-0

[Event "55th Biel Festival MTO 2022"]
[Site "Biel"]
[Date "2022.07.19"]
[Round "6.11"]
[White "Seul, Georg"]
[Black "Erdos Viktor"]
[Result "1/2-1/2"]
[ECO "B51"]
[WhiteElo "2367"]
[BlackElo "2586"]
[Annotator "TA"]
[PlyCount "48"]
[EventDate "2022.07.13"]
[EventType "swiss"]
[EventCountry "SUI"]
[SourceTitle "playchess.com"]
[Source "ChessBase"]
[SourceQuality "1"]
[TimeControl "40/5400+30:1800+30"]

{[%evp 11,48,0,11,8,4,14,16,17,24,21,27,26,26,17,24,20,24,23,28,8,17,0,15,2,28,0,10,18,30,29,30,34,47,50,37,39,40,40,56]} 1. e4 {[%emt 0:00:03]} c5 {[%emt 0:03:24]} 2. Nf3 {[%emt 0:00:15]} d6 {[%emt 0:00:07]} 3. Bb5+ {[%emt 0:00:27]} Nd7 {[%emt 0:00:41]} 4. d4 {[%emt 0:00:37]} cxd4 {[%emt 0:00:30]} 5. Qxd4 {[%emt 0:00:11]} a6 {[%emt 0:00:30]} 6. Bxd7+ {[%emt 0:00:24]} Bxd7 {[%emt 0:00:06]} 7. c4 {[%emt 0:00:41] B51: Sicilian: Moscow Variation (3 Bb5+) without 3...Bd7.} Nf6 {[%emt 0:02:08]} 8. Nc3 {[%emt 0:03:13]} e6 {[%emt 0:01:32]} 9. O-O {[%emt 0:02:09] The position is equal.} Bc6 {[%emt 0:02:11]} 10. Qd3 {[%emt 0:09:58]} Be7 {[%emt 0:02:52]} 11. Nd4 {[%emt 0:00:56]} Rc8 {[%emt 0:01:40]} 12. h3 {[%emt 0:33:33]} O-O {[%emt 0:02:56]} 13. Be3 {[%emt 0:01:43]} Qa5 {[%emt 0:02:13] [#]} 14. a4 $146 {[%emt 0:09:15]} ({Predecessor:} 14. Rac1 Qh5 15. f4 Nd7 16. b4 Rfd8 17. a3 Bf6 18. Nxc6 Rxc6 19. Ne2 Rdc8 20. Kh2 {1-0 (51) Mehar,C (2255)-Anu,B (2031) Moscow 2017}) 14... Rfd8 {[%emt 0:02:51]} 15. Bd2 {[%emt 0:13:35]} Qh5 {[%emt 0:04:15] Prevents Nd5.} 16. Rfe1 {[%emt 0:00:54]} Be8 {[%emt 0:05:21]} 17. b3 {[%emt 0:01:59]} Nd7 {[%emt 0:06:30]} 18. Rab1 {[%emt 0:02:30]} Bf6 {[%emt 0:01:37]} 19. Be3 {[%emt 0:02:10]} Qa5 {[%emt 0:23:40]} 20. Qd2 {[%emt 0:01:57][%cal Oc3d5]} Qc7 {[%emt 0:03:59]} 21. Bg5 {[%emt 0:01:30]} h6 {[%emt 0:00:38] White is slightly better.} 22. Bxf6 {[%emt 0:00:17]} Nxf6 {[%emt 0:00:05]} 23. Re3 {[%emt 0:03:07]} Qc5 {[%emt 0:05:07]} 24. Rd1 {[%emt 0:00:39]} Kf8 {[%emt 0:01:28] Weighted Error Value: White=0.05 (flawless) /Black=0.06 (flawless)} 1/2-1/2

[Event "55th Biel Festival MTO 2022"]
[Site "Biel"]
[Date "2022.07.19"]
[Round "6.12"]
[White "Mendonca Leon Luke"]
[Black "Raja Harshit"]
[Result "1-0"]
[ECO "E60"]
[WhiteElo "2567"]
[BlackElo "2477"]
[Annotator "TA"]
[PlyCount "63"]
[EventDate "2022.07.13"]
[EventType "swiss"]
[EventCountry "SUI"]
[SourceTitle "playchess.com"]
[Source "ChessBase"]
[SourceQuality "1"]
[TimeControl "40/5400+30:1800+30"]

{[%evp 9,63,20,47,21,27,31,18,23,37,34,33,34,33,20,36,22,78,88,122,93,97,30,42,36,67,42,114,71,150,52,156,154,204,199,205,167,165,147,238,216,280,234,315,241,292,296,281,279,355,366,954,925,1007,1005,959,807]} 1. d4 {[%emt 0:00:03]} Nf6 {[%emt 0:05:50]} 2. c4 {[%emt 0:00:14]} g6 {[%emt 0:00:14]} 3. Nf3 {[%emt 0:05:28]} Bg7 {[%emt 0:00:38]} 4. e3 {[%emt 0:00:29][%cal Be2e3,Be3e4][%mdl 32]} O-O {[%emt 0:02:24]} 5. Be2 {[%emt 0:01:06]} d5 {[%emt 0:04:29]} 6. cxd5 {[%emt 0:01:48] E60: King's Indian: Unusual lines and Fianchetto Variation without Nc3.} Nxd5 {[%emt 0:00:12][%cal Oc7c5]} 7. e4 {[%emt 0:01:57]} Nb6 {[%emt 0:00:56]} 8. Be3 {[%emt 0:09:36] The position is equal.} Nc6 {[%emt 0:08:10]} 9. O-O {[%emt 0:05:58]} Bg4 {[%emt 0:03:58]} 10. Nbd2 {[%emt 0:01:00]} f5 {[%emt 0:05:40]} 11. exf5 {[%emt 0:20:29]} gxf5 {[%emt 0:11:22] [#] ...f4 is the strong threat.} 12. Nb3 $146 {[%emt 0:09:16]} ({Predecessor:} 12. g3 Qd5 13. Rc1 Rad8 14. Nb3 e5 15. Rc5 Qd7 16. Bg5 e4 17. Nh4 Bxd4 18. Bxg4 fxg4 19. Nxd4 Qxd4 20. Qxg4 {1-0 (24) Shaposhnikov,E (2549)-Bezzubenkov,S (2223) Cheliabinsk 2021}) 12... a5 {[%emt 0:18:45]} (12... e5 $11 {keeps the balance.}) 13. Rc1 $16 {[%emt 0:06:56]} Kh8 {[%emt 0:04:24]} 14. Re1 {[%emt 0:11:12]} Nd5 {[%emt 0:03:07]} 15. Bd2 {[%emt 0:03:54]} (15. Nc5 $16) 15... Qd6 $11 {[%emt 0:02:43]} 16. h3 {[%emt 0:06:33]} Bh5 {[%emt 0:02:20]} 17. Nc5 {[%emt 0:06:40]} Nxd4 {[%emt 0:03:49] White now steadily converts the win.} (17... b6 $14 18. Nb7 Qf6) 18. Nxb7 {[%emt 0:03:25]} Qb6 {[%emt 0:10:50] [#]} ({Black should try} 18... Nxe2+ 19. Qxe2 Qb6) 19. Nc5 {[%emt 0:00:29]} ({White should play} 19. Nxd4 $1 $16 Bxe2 20. Nxe2 Qxb7 21. Nf4) 19... Nxe2+ {[%emt 0:07:16]} (19... Bxf3 $14 20. Bxf3 Rad8) 20. Qxe2 $16 {[%emt 0:00:03]} e5 {[%emt 0:02:13]} (20... Qxb2 $16 {was worth a try.} 21. Ne6 Rfe8) 21. Nd7 $18 {[%emt 0:01:18] Pair of Knights!} Qd6 {[%emt 0:00:23] Hoping for ...Bxf3.} 22. Nxf8 {[%emt 0:02:13]} Rxf8 {[%emt 0:00:02]} 23. Qb5 {[%emt 0:01:06]} (23. Bxa5 e4 24. Bxc7 Nxc7 $17) 23... e4 {[%emt 0:01:18]} (23... Bxf3 $16 {was necessary.} 24. gxf3 Nb4) 24. Ng5 {[%emt 0:00:39][%cal Bf3g5,Bg5h3,Bh3f4,Bf4e6][%mdl 32]} Be8 {[%emt 0:00:45]} 25. Qc5 {[%emt 0:00:16]} (25. Qxa5 h6 $16) 25... Qd7 {[%emt 0:00:32]} 26. h4 {[%emt 0:00:28]} (26. Bxa5 h6 $14) 26... Rg8 {[%emt 0:00:30]} 27. Nh3 {[%emt 0:01:21]} c6 {[%emt 0:00:36]} 28. Nf4 {[%emt 0:00:02]} ({Stronger than} 28. Qxa5 Bxb2 29. g3 Qg7 $14) 28... Bf6 {[%emt 0:00:22]} 29. g3 {[%emt 0:00:24]} ({Less strong is} 29. Qxa5 Qg7 30. g3 Bd4 $16) 29... Rxg3+ $2 {[%emt 0:00:41]} (29... Bxb2 30. Red1 (30. Qxa5 Be5 $18) 30... Bg7) 30. fxg3 {[%emt 0:00:10][%cal Rc5f8] White is clearly winning.} Qg7 {[%emt 0:00:29] Inhibits Qf8+.} 31. Kh2 {[%emt 0:00:19]} Bd4 {[%emt 0:00:04]} 32. Ne6 {[%emt 0:00:31] Weighted Error Value: White=0.16 (very precise) /Black=0.39} 1-0